bitfinex/quotes_ETHUSD_20240731
["timestamp","ask_amount","ask_price","bid_price","bid_amount"]
[1722429037244,3.00925,3323.1,3321.9,3.01027]
[1722429037245,0.55,3323.0,3321.9,3.01027]
[1722429037421,3.55935,3323.0,3321.7,3.10353571]
[1722429037742,3.00947,3322.9,3322.0,0.03258996]
[1722429037940,3.55934,3323.0,3321.9,0.06019993]
[1722429038105,0.55,3323.0,3322.1,0.03258996]
[1722429038284,3.00921,3323.2,3322.0,3.01021]
[1722429038285,0.55,3323.1,3322.0,3.01021]
[1722429038487,3.00914,3323.2,3322.3,2.3061]
[1722429038840,3.00914,3323.2,3322.4,0.03258996]
[1722429038986,3.0,3323.7,3322.4,0.03258996]
[1722429038987,0.55,3323.1,3322.4,0.03258996]
[1722429039184,3.00942,3322.9,3321.8,3.0]
[1722429039434,3.00917,3323.2,3321.9,0.03258996]
[1722429039615,3.00924,3323.1,3321.9,0.09278622]
[1722429039799,3.00932,3323.0,3321.9,3.10304622]
[1722429040001,3.00932,3323.0,3321.9,0.09278622]
[1722429040609,3.00918,3323.2,3321.9,0.09278622]
[1722429040821,3.00933,3323.0,3322.0,0.61031962]
[1722429041018,3.00933,3323.0,3322.1,0.06019625]
[1722429041634,3.00957,3322.8,3322.2,0.03258996]
[1722429042106,3.00957,3322.8,3321.8,3.0]
[1722429042289,0.601892,3322.8,3322.3,0.03258996]
[1722429042494,3.00985,3322.5,3321.8,3.0]
[1722429042730,6.0089,3323.5,3322.4,0.03258996]
[1722429042731,3.00969,3322.6,3322.4,0.03258996]
[1722429043030,6.0089,3323.5,3321.7,2.3658]
[1722429043031,3.00993,3322.4,3321.7,2.3658]
[1722429043216,3.0098,3322.5,3321.7,2.3658]
[1722429043531,3.00946,3322.9,3321.8,0.0319865]
[1722429043687,0.300925,3323.0,3321.9,0.26995865]
[1722429043889,3.66488,3323.4,3321.9,0.26995865]
[1722429043890,3.00962,3322.7,3321.9,0.26995865]
[1722429044292,3.00962,3322.7,3322.0,0.0319865]
[1722429044831,3.00962,3322.7,3321.7,5.3658]
[1722429045057,3.00987,3322.4,3322.1,0.0319865]
[1722429045191,0.300987,3322.4,3321.7,2.3658]
[1722429045391,3.310867,3322.4,3321.8,0.0319865]
[1722429045642,0.300987,3322.4,3321.8,0.0319865]
[1722429046002,0.300987,3322.4,3321.7,2.3658]
[1722429046222,3.00967,3322.7,3321.8,0.0319865]
[1722429046401,6.01969,3322.5,3321.8,0.0319865]
[1722429046789,3.00927,3323.1,3321.8,0.0319865]
[1722429046790,3.00987,3322.4,3321.8,0.0319865]
[1722429047429,3.01032,3321.9,3321.8,0.0319865]
[1722429047833,3.01032,3321.9,3321.4,0.2]
[1722429048194,3.01058,3321.7,3321.5,0.03185283]
[1722429048398,3.01059,3321.6,3321.5,0.03185283]
[1722429048600,3.01038,3321.9,3321.4,0.2]
[1722429048848,3.01051,3321.7,3321.4,0.2]
[1722429049251,0.301038,3321.8,3321.4,0.2]
[1722429049929,3.01017,3322.1,3321.4,0.2]
[1722429050259,0.55,3322.0,3321.4,0.2]
[1722429050770,3.56027,3322.0,3321.4,0.4]
[1722429051076,6.57058,3322.0,3321.5,0.03197504]
[1722429051256,3.667378,3321.9,3321.5,0.03197504]
[1722429052067,3.01051,3321.7,3321.5,0.03197504]
[1722429052361,3.01051,3321.7,3321.4,0.4]
[1722429053887,6.02136,3321.5,3321.4,0.4]
[1722429054040,3.01068,3321.5,3321.4,0.4]
[1722429054238,3.311748,3321.5,3321.4,0.4]
[1722429054837,3.311748,3321.5,3321.4,0.6]
[1722429055058,6.872428,3321.5,3321.4,0.6]
[1722429056187,9.883108,3321.5,3321.4,0.6]
[1722429056400,12.883108,3321.5,3321.4,0.6]
[1722429056997,9.872428,3321.5,3321.4,0.6]
[1722429058103,6.872428,3321.5,3321.4,0.6]
[1722429058305,0.657058,3321.9,3321.4,0.6]
[1722429058477,3.01053,3321.7,3321.4,0.6]
[1722429058869,3.01053,3321.7,3321.5,0.03270839]
[1722429059299,3.01049,3321.8,3321.5,0.03270839]
[1722429059300,3.01042,3321.8,3321.5,0.03270839]
[1722429059501,3.00988,3322.4,3321.4,0.6]
[1722429059502,3.01036,3321.9,3321.4,0.6]
[1722429059873,3.01043,3321.8,3321.5,0.03270839]
[1722429060068,3.01059,3321.6,3321.5,0.03270839]
[1722429060371,0.300988,3322.3,3321.5,0.03270839]
[1722429060571,3.0102,3322.1,3321.5,0.03270839]
[1722429060823,3.00999,3322.3,3321.5,0.03270839]
[1722429061023,3.00992,3322.4,3321.6,2.3484]
[1722429061174,3.0096,3322.7,3321.7,0.23811084]
[1722429061371,3.00946,3322.9,3321.8,0.03270839]
[1722429061671,3.00912,3323.3,3322.1,3.01011]
[1722429061868,3.00874,3323.7,3322.2,0.06019217]
[1722429062074,2.2899,3323.8,3322.3,3.00988]
[1722429062075,3.00866,3323.8,3322.3,3.00988]
[1722429062314,3.00866,3323.8,3322.4,6.0972094]
[1722429062315,0.22899,3323.7,3322.4,6.0972094]
[1722429062498,0.22899,3323.7,3322.4,6.12935246]
[1722429062901,3.00885,3323.6,3322.4,3.42129246]
[1722429063223,5.787452,3324.3,3322.6,0.2]
[1722429063224,3.0092,3323.2,3322.6,0.2]
[1722429063374,3.00903,3323.4,3322.6,0.2]
[1722429063578,3.00903,3323.4,3322.7,0.03194455]
[1722429063579,0.55,3323.3,3322.7,0.03194455]
[1722429063785,3.55906,3323.3,3322.7,0.03194455]
[1722429064002,3.00924,3323.1,3322.7,0.03194455]
[1722429064205,3.310264,3323.0,3322.7,0.03194455]
[1722429064502,0.300924,3323.0,3322.7,0.03194455]
[1722429064837,3.55909,3323.3,3322.7,0.03194455]
[1722429065001,3.0095,3322.9,3322.7,0.03194455]
[1722429065333,0.55,3323.3,3322.7,0.03194455]
[1722429065334,3.00926,3323.1,3322.7,0.03194455]
[1722429065639,0.55,3323.0,3322.7,0.03194455]
[1722429065793,6.01902,3322.8,3322.7,0.03194455]
[1722429065998,0.55,3323.0,3322.6,0.2]
[1722429065999,6.0192,3322.7,3322.6,0.2]
[1722429066201,3.5596,3322.7,3322.6,0.2]
[1722429066393,0.55,3322.7,3322.6,0.2]
[1722429066595,0.355949,3322.7,3322.6,0.2]
[1722429066830,3.915549,3322.7,3322.6,0.2]
[1722429067244,0.905949,3322.7,3322.6,0.2]
[1722429067444,0.355949,3322.7,3322.6,0.2]
[1722429067596,3.00916,3323.2,3322.6,0.2]
[1722429067802,3.55924,3323.1,3322.6,0.2]
[1722429068119,0.2776484,3323.3,3322.7,0.03068772]
[1722429068329,3.2867084,3323.3,3322.7,0.03068772]
[1722429068491,0.62957084,3323.2,3322.6,0.2]
[1722429068812,0.2776484,3323.3,3322.7,0.03067245]
[1722429069434,3.2867484,3323.3,3322.7,0.03067245]
[1722429069859,3.2867484,3323.3,3322.6,0.2]
[1722429070222,3.2867484,3323.3,3322.7,0.03067245]
[1722429070440,3.2867484,3323.3,3322.6,0.2]
[1722429070645,0.32867484,3323.2,3322.8,0.03067245]
[1722429070808,0.32867484,3323.2,3322.6,0.2]
[1722429071011,3.33784484,3323.2,3322.7,0.03067245]
[1722429071659,0.32867484,3323.2,3322.7,0.03067245]
[1722429071816,3.0089,3323.5,3322.7,0.03067245]
[1722429072162,3.0,3323.7,3322.6,0.2]
[1722429072163,3.55897,3323.4,3322.6,0.2]
[1722429072472,3.0088,3323.6,3322.7,0.03067245]
[1722429072669,0.85088,3323.5,3322.7,0.03067245]
[1722429073548,3.00862,3323.8,3322.7,0.03067245]
[1722429073711,0.55,3323.7,3322.7,0.03067245]
[1722429074122,3.00911,3323.3,3322.7,0.03067245]
[1722429074781,6.01787,3323.5,3322.7,0.03067245]
[1722429075065,0.55,3323.4,3322.7,0.03067245]
[1722429075262,0.905892,3323.4,3322.7,0.03067245]
[1722429075633,3.0086,3323.9,3322.7,0.03067245]
[1722429075972,3.0082,3324.3,3322.9,2.2775]
[1722429076122,2.60267611,3324.7,3323.3,2.2775]
[1722429076323,0.86099046,3324.6,3323.4,0.22775]
[1722429076550,3.00776,3324.8,3323.4,0.2879207]
[1722429076780,3.00803,3324.5,3323.5,0.0303785]
[1722429076984,3.00806,3324.4,3323.5,0.0303785]
[1722429077255,2.60128229,3325.1,3323.5,0.0303785]
[1722429077256,3.00831,3324.2,3323.5,0.0303785]
[1722429077618,3.00807,3324.4,3323.3,2.2775]
[1722429077818,3.00807,3324.4,3323.4,0.03036323]
[1722429078058,3.00835,3324.1,3323.4,0.03036323]
[1722429078257,3.13975518,3325.0,3323.4,0.03036323]
[1722429078258,3.00858,3323.9,3323.4,0.03036323]
[1722429078473,1.1517,3323.8,3323.4,0.03036323]
[1722429078631,3.00887,3323.5,3323.4,0.03036323]
[1722429078840,3.00887,3323.5,3322.7,2.3973]
[1722429079067,3.00887,3323.5,3322.8,0.03003889]
[1722429079381,0.55,3323.7,3322.8,0.03003889]
[1722429079593,3.00874,3323.7,3322.8,0.03003889]
[1722429079906,0.905874,3323.6,3322.7,2.3973]
[1722429080104,3.914704,3323.6,3322.7,2.3973]
[1722429080302,3.914704,3323.6,3322.8,0.03003889]
[1722429080796,0.355874,3323.6,3322.9,35.0]
[1722429081098,3.0085,3324.0,3323.0,0.03025637]
[1722429081262,2.6011194,3324.4,3323.0,0.09043823]
[1722429081263,3.00819,3324.3,3323.0,0.09043823]
[1722429081461,3.00819,3324.3,3323.1,5.9671]
[1722429081462,3.00817,3324.3,3323.1,5.9671]
[1722429081697,3.00817,3324.3,3323.1,5.45811288]
[1722429081698,3.00833,3324.1,3323.1,5.45811288]
[1722429081851,3.00833,3324.1,3323.2,0.03025256]
[1722429082050,0.300817,3324.2,3323.2,0.03025256]
[1722429082358,2.6011194,3324.9,3323.2,0.09042939]
[1722429082359,3.00763,3324.9,3323.2,0.09042939]
[1722429082579,3.55,3324.8,3323.2,0.09042939]
[1722429082782,3.55,3324.8,3323.2,0.03025256]
[1722429083091,3.55,3324.8,3323.2,3.03025256]
[1722429083267,3.00812,3324.4,3323.2,3.38684038]
[1722429083465,0.655763,3324.7,3323.2,3.38684038]
[1722429083668,0.655763,3324.7,3323.2,0.03025256]
[1722429083669,3.00834,3324.1,3323.2,0.03025256]
[1722429083881,3.00857,3323.9,3323.2,0.03025256]
[1722429084081,3.0087,3323.7,3323.2,0.03025256]
[1722429084474,3.00894,3323.5,3323.2,0.03025256]
[1722429084702,3.00874,3323.7,3323.2,0.03025256]
[1722429084703,6.01751,3323.7,3323.2,0.03025256]
[1722429084872,0.601751,3323.6,3322.9,35.0]
[1722429085071,0.601751,3323.6,3323.3,0.03008467]
[1722429085292,3.00893,3323.5,3322.9,35.0]
[1722429085459,3.00893,3323.5,3323.4,0.03008467]
[1722429085655,3.00893,3323.5,3322.9,35.0]
[1722429085860,3.00893,3323.5,3323.0,0.03008467]
[1722429086098,3.00903,3323.4,3323.0,0.03008467]
[1722429086257,3.610826,3323.4,3323.0,0.03008467]
[1722429086659,3.00911,3323.3,3323.0,0.03008467]
[1722429086865,6.01846,3323.1,3323.0,0.03008467]
[1722429087158,3.00958,3322.8,3322.6,0.2]
[1722429087372,3.0096,3322.7,3322.6,0.2]
[1722429087908,0.30096,3322.7,3322.6,0.2]
[1722429088559,3.00937,3323.0,3322.6,0.2]
[1722429088793,0.55,3322.9,3322.6,0.2]
[1722429089397,3.55943,3322.9,3322.6,0.2]
[1722429089607,3.0096,3322.7,3322.6,0.2]
[1722429090363,3.00951,3322.8,3322.6,0.2]
[1722429090586,3.0096,3322.7,3322.6,0.2]
[1722429091008,6.0192,3322.7,3322.6,0.2]
[1722429091175,6.5692,3322.7,3322.6,0.2]
[1722429092311,3.5596,3322.7,3322.6,0.2]
[1722429092680,6.5692,3322.7,3322.6,0.2]
[1722429092878,10.3014088,3322.7,3322.6,0.2]
[1722429093082,7.2918088,3322.7,3322.6,0.2]
[1722429093269,3.00982,3322.5,3321.8,35.0]
[1722429093473,3.55988,3322.4,3321.8,35.0]
[1722429094008,3.00996,3322.3,3321.8,35.0]
[1722429094931,3.666938,3322.3,3321.8,35.0]
[1722429095255,3.01028,3322.0,3321.8,35.0]
[1722429095432,3.01028,3322.0,3321.2,2.618]
[1722429095802,3.01028,3322.0,3321.3,35.0]
[1722429096131,3.01014,3322.2,3321.3,35.0]
[1722429098132,6.0211,3321.7,3321.3,35.0]
[1722429098342,3.0106,3321.6,3321.3,35.0]
[1722429099039,3.0106,3321.6,3320.9,2.4607]
[1722429099426,3.0106,3321.6,3321.0,35.0]
[1722429099625,3.01037,3321.9,3321.0,35.0]
[1722429099938,2.3135,3322.6,3321.1,0.36201866]
[1722429100142,3.00973,3322.6,3321.1,3.37304866]
[1722429100501,3.00955,3322.8,3321.5,2.3536]
[1722429100703,3.00934,3323.0,3321.6,3.07070445]
[1722429100938,3.00934,3323.0,3321.7,0.57261045]
[1722429101139,3.00934,3323.0,3321.8,0.06020078]
[1722429101317,3.00943,3322.9,3321.8,0.06020078]
[1722429101513,3.00943,3322.9,3321.9,35.0]
[1722429101721,3.00935,3323.0,3322.0,0.06020073]
[1722429102044,3.00935,3323.0,3322.1,2.83299025]
[1722429102247,3.00918,3323.2,3321.7,3.01045]
[1722429102406,3.00947,3322.9,3322.6,0.2]
[1722429103842,3.0096,3322.7,3322.6,0.2]
[1722429104812,6.01897,3322.9,3322.6,0.2]
[1722429105058,3.00952,3322.8,3322.6,0.2]
[1722429106015,3.00952,3322.8,3322.6,0.4]
[1722429106554,3.00952,3322.8,3322.7,0.02986434]
[1722429106755,6.620999,3322.8,3322.7,0.02986434]
[1722429106959,6.0192,3322.7,3322.6,0.4]
[1722429107457,6.5692,3322.7,3322.6,0.4]
[1722429108635,9.5788,3322.7,3322.6,0.4]
[1722429108964,17.30439153,3322.7,3322.6,0.4]
[1722429109186,14.70119559,3322.7,3322.6,0.4]
[1722429109794,5.68199559,3322.7,3322.6,0.4]
[1722429109960,0.55,3322.7,3322.6,0.4]
[1722429110160,0.55,3322.7,3322.6,0.6]
[1722429110161,3.0096,3322.7,3322.6,0.6]
[1722429110891,3.0096,3322.7,3322.6,0.62976123]
[1722429111191,3.00946,3322.9,3322.6,0.62976123]
[1722429111394,0.601886,3322.8,3322.6,0.62976123]
[1722429111545,3.0094,3323.0,3322.6,0.62976123]
[1722429111745,3.00918,3323.2,3322.6,0.62976123]
[1722429112197,6.01841,3323.2,3322.6,0.62976123]
[1722429112343,0.601796,3323.4,3322.6,0.62976123]
[1722429112543,3.00951,3322.8,3322.6,0.62976123]
[1722429112752,3.00943,3322.9,3322.6,0.62976123]
[1722429113694,3.0096,3322.7,3322.6,0.62976123]
[1722429113846,3.5596,3322.7,3322.6,0.62976123]
[1722429115178,6.5692,3322.7,3322.6,0.62976123]
[1722429115383,7.22612,3322.7,3322.6,0.62976123]
[1722429116463,7.22612,3322.7,3322.6,0.6]
[1722429118698,4.21652,3322.7,3322.6,0.6]
[1722429118993,6.00906,3323.3,3322.6,0.6]
[1722429118994,6.00912,3323.3,3322.6,0.6]
[1722429119352,6.00912,3323.3,3322.7,0.02986816]
[1722429119564,6.00912,3323.3,3322.6,0.6]
[1722429119783,3.00905,3323.4,3322.8,0.02986816]
[1722429119986,3.610847,3323.4,3322.6,35.6]
[1722429120207,3.0089,3323.5,3322.9,0.02986816]
[1722429120349,3.0089,3323.5,3322.6,35.6]
[1722429120545,3.00899,3323.4,3323.0,0.02986816]
[1722429120812,3.00874,3323.7,3322.7,2.2593]
[1722429121008,3.00855,3323.9,3323.1,0.02986816]
[1722429121299,3.00864,3323.8,3323.2,0.02986816]
[1722429121447,3.00864,3323.8,3322.8,3.04901288]
[1722429121649,3.00869,3323.7,3322.9,0.02986816]
[1722429124193,3.00855,3323.9,3322.9,0.02986816]
[1722429124364,0.55,3323.8,3322.9,0.02986816]
[1722429125069,0.55,3323.8,3323.0,35.0]
[1722429125471,0.55,3323.8,3323.1,0.02986816]
[1722429125675,3.00875,3323.7,3323.1,0.02986816]
[1722429125878,3.00878,3323.6,3323.1,0.02986816]
[1722429126276,3.00892,3323.5,3323.1,0.02986816]
[1722429126585,0.55,3324.0,3323.1,0.02986816]
[1722429126586,0.55,3323.4,3323.1,0.02986816]
[1722429126817,0.55,3323.4,3322.7,2.2593]
[1722429126818,3.55903,3323.4,3322.7,2.2593]
[1722429127105,0.55,3323.4,3322.7,2.2593]
[1722429127305,2.94316756,3323.9,3322.8,0.02986816]
[1722429127306,6.01747,3323.7,3322.8,0.02986816]
[1722429127462,3.0087,3323.7,3322.8,0.02986816]
[1722429127973,3.34710467,3323.9,3322.8,0.02986816]
[1722429128321,0.33854467,3323.9,3322.9,0.35658782]
[1722429128684,2.60462289,3324.3,3323.0,2.3145824]
[1722429129007,2.60462289,3325.0,3323.7,3.00867]
[1722429129227,3.00747,3325.1,3323.8,2.31456302]
[1722429129508,2.08472965,3325.2,3324.0,3.00841]
[1722429129509,0.50921997,3325.0,3324.0,3.00841]
[1722429129804,2.08472965,3325.2,3323.9,35.0]
[1722429129805,2.08472965,3325.2,3324.1,5.37835742]
[1722429130024,3.0077,3324.8,3324.1,2.34700708]
[1722429130164,3.00784,3324.7,3324.1,2.34700708]
[1722429130363,2.08472965,3325.2,3324.2,35.0]
[1722429130364,3.00767,3324.9,3324.2,35.0]
[1722429130793,3.00767,3324.9,3324.3,0.02880708]
[1722429131001,3.00784,3324.7,3324.3,0.02880708]
[1722429131325,3.00795,3324.6,3324.3,0.02880708]
[1722429131463,3.00806,3324.4,3323.6,2.2556]
[1722429131687,3.00825,3324.2,3323.6,2.2556]
[1722429131888,3.00829,3324.2,3323.6,2.2556]
[1722429132125,3.00793,3324.6,3323.6,2.2556]
[1722429132291,3.00784,3324.7,3323.6,2.2556]
[1722429132506,0.300784,3324.6,3323.6,2.2556]
[1722429132919,3.308684,3324.6,3323.6,2.2556]
[1722429133320,3.00764,3324.9,3323.6,2.2556]
[1722429133321,3.00775,3324.8,3323.6,2.2556]
[1722429133654,3.55758,3325.0,3323.6,2.5574]
[1722429133859,6.01532,3324.9,3323.6,2.5574]
[1722429134205,3.00763,3324.9,3323.6,2.5574]
[1722429134406,0.55,3325.0,3323.7,0.06016479]
[1722429134625,0.55,3325.0,3323.9,2.3003]
[1722429134950,3.55752,3325.0,3324.0,35.0]
[1722429135337,0.55,3325.0,3324.0,35.0]
[1722429136341,3.55752,3325.0,3324.0,35.0]
[1722429136536,3.55752,3325.0,3324.1,0.02880708]
[1722429136537,3.00761,3324.9,3324.1,0.02880708]
[1722429136744,3.4142821,3324.9,3323.9,2.3003]
[1722429136916,3.4142821,3324.9,3324.2,0.02880708]
[1722429137118,3.4142821,3324.9,3324.0,35.0]
[1722429137339,3.4142821,3324.9,3324.3,0.02880708]
[1722429137340,0.4066721,3324.9,3324.3,0.02880708]
[1722429137511,0.4066721,3324.9,3324.0,35.0]
[1722429137712,3.00703,3325.6,3324.2,5.63832]
[1722429137918,3.00665,3326.0,3324.4,2.3283]
[1722429138217,3.05837442,3326.8,3324.9,2.316]
[1722429138218,3.00651,3326.2,3324.9,2.316]
[1722429138528,3.00651,3326.2,3325.0,0.06014115]
[1722429138728,3.00651,3326.2,3325.1,35.0]
[1722429138917,0.300651,3326.1,3325.1,35.0]
[1722429139110,0.300651,3326.1,3325.2,0.0889482]
[1722429139447,3.00621,3326.5,3325.3,2.311]
[1722429139629,3.00625,3326.4,3325.3,2.311]
[1722429139834,3.00663,3326.0,3325.3,2.311]
[1722429140182,3.00601,3326.7,3325.4,0.02880708]
[1722429140183,3.00678,3325.9,3325.4,0.02880708]
[1722429140473,0.300678,3325.8,3325.4,0.02880708]
[1722429140769,3.00699,3325.6,3325.1,35.0]
[1722429140914,3.00707,3325.5,3324.8,2.311]
[1722429141120,3.0,3326.3,3324.8,2.311]
[1722429141362,3.00749,3325.1,3323.8,37.313]
[1722429141568,3.00749,3325.1,3323.8,37.6148]
[1722429141872,3.00749,3325.1,3323.8,40.62338]
[1722429142032,3.00752,3325.0,3323.8,37.6148]
[1722429142352,3.0078,3324.7,3323.9,3.04901288]
[1722429142537,3.00806,3324.4,3323.8,37.6148]
[1722429143058,3.00792,3324.6,3323.8,37.6148]
[1722429143632,3.00811,3324.4,3323.8,37.6148]
[1722429143813,3.00792,3324.6,3323.8,37.6148]
[1722429144021,3.00754,3325.0,3323.8,37.6148]
[1722429144329,0.55,3324.9,3323.9,3.04901288]
[1722429144561,3.55761,3324.9,3323.9,3.04901288]
[1722429144767,3.00744,3325.1,3323.8,37.6148]
[1722429144768,0.55,3325.1,3323.8,37.6148]
[1722429144915,3.00797,3324.5,3323.8,37.6148]
[1722429145115,3.00776,3324.8,3323.8,37.6148]
[1722429145618,0.55,3325.3,3323.8,37.6148]
[1722429145619,3.00804,3324.5,3323.8,37.6148]
[1722429145827,3.0083,3324.2,3323.8,2.313]
[1722429146029,3.00842,3324.0,3323.4,2.6447]
[1722429146445,3.00851,3323.9,3323.4,2.6447]
[1722429146963,3.00842,3324.0,3323.4,2.6447]
[1722429146964,6.01756,3323.6,3323.5,0.03579971]
[1722429147124,6.01756,3323.6,3323.5,0.0492246]
[1722429147329,6.619316,3323.6,3323.5,0.0492246]
[1722429147729,7.169316,3323.6,3323.5,0.0492246]
[1722429147955,9.02661,3323.5,3323.4,0.2]
[1722429148155,12.57661,3323.5,3323.4,0.2]
[1722429148356,10.8855766,3323.5,3323.4,0.2]
[1722429149371,7.8767066,3323.5,3323.4,0.2]
[1722429149547,3.55,3323.5,3323.4,0.2]
[1722429149757,3.00872,3323.7,3323.4,0.2]
[1722429149920,0.55,3323.6,3323.4,0.2]
[1722429150769,3.00857,3323.9,3323.4,0.2]
[1722429151291,3.00844,3324.0,3323.5,35.0]
[1722429151582,3.00844,3324.0,3323.6,0.02732107]
[1722429151948,6.01738,3323.7,3323.6,0.02732107]
[1722429152254,3.00887,3323.5,3323.4,0.2]
[1722429152668,3.55887,3323.5,3323.4,0.2]
[1722429153783,6.56774,3323.5,3323.4,0.2]
[1722429161000,9.57661,3323.5,3323.4,0.2]
[1722429161194,12.57661,3323.5,3323.4,0.2]
[1722429161501,13.8944448,3323.5,3323.4,0.2]
[1722429162208,16.9033148,3323.5,3323.4,0.2]
[1722429162520,17.21786753,3323.5,3323.4,0.2]
[1722429164315,22.70973753,3323.5,3323.4,0.2]
[1722429165311,19.70086753,3323.5,3323.4,0.2]
[1722429169496,16.69199753,3323.5,3323.4,0.2]
[1722429175211,19.35899753,3323.5,3323.4,0.2]
[1722429175522,22.36786753,3323.5,3323.4,0.2]
[1722429175738,19.35899753,3323.5,3323.4,0.2]
[1722429176247,10.65012753,3323.5,3323.4,0.2]
[1722429176549,9.01774,3323.5,3323.4,0.2]
[1722429177308,3.00887,3323.5,3323.4,0.2]
[1722429177708,3.00878,3323.6,3323.4,0.2]
[1722429177709,3.00865,3323.8,3323.4,0.2]
[1722429177924,3.00869,3323.7,3323.4,0.2]
[1722429179001,0.55,3323.6,3323.4,0.2]
[1722429179239,3.00887,3323.5,3323.4,0.2]
[1722429179441,3.55887,3323.5,3323.4,0.2]
[1722429180617,0.55,3323.5,3323.4,0.2]
[1722429180958,3.00861,3323.8,3323.4,0.2]
[1722429181504,3.00843,3324.0,3323.4,0.2]
[1722429181920,3.00828,3324.2,3323.4,0.2]
[1722429182122,3.5584,3324.1,3323.4,0.2]
[1722429182328,0.55,3324.1,3323.4,0.2]
[1722429182528,3.00852,3323.9,3323.4,0.2]
[1722429182953,3.55838,3324.1,3323.4,0.2]
[1722429184019,0.55,3324.1,3323.4,0.2]
[1722429184226,3.5584,3324.1,3323.4,0.2]
[1722429184482,0.55,3324.1,3323.4,0.2]
[1722429184980,3.55834,3324.1,3323.5,2.3227]
[1722429185285,3.00851,3323.9,3323.5,2.57497]
[1722429185428,0.55,3324.1,3323.5,2.3227]
[1722429185786,6.01774,3323.5,3323.4,0.2]
[1722429185988,6.619514,3323.5,3323.4,0.2]
[1722429186282,6.56774,3323.5,3323.4,0.2]
[1722429186977,3.00916,3323.2,3322.7,2.4409]
[1722429187127,3.00897,3323.4,3322.7,2.4409]
[1722429187331,0.55,3323.3,3322.7,2.4409]
[1722429187774,0.55,3323.3,3322.7,2.68499]
[1722429187978,10.41887,3323.6,3322.7,2.68499]
[1722429188207,0.55,3323.5,3322.7,2.68499]
[1722429188483,7.41,3323.6,3322.9,2.2526]
[1722429188777,7.41,3323.6,3323.1,2.4513]
[1722429188942,7.41,3323.6,3323.2,35.25114781]
[1722429189925,3.00822,3324.3,3323.2,35.25114781]
[1722429190129,3.00806,3324.4,3323.3,2.40127666]
[1722429190424,3.00774,3324.8,3323.4,2.7884]
[1722429190625,3.00766,3324.9,3323.6,2.4868]
[1722429190874,3.00766,3324.9,3323.8,2.4868]
[1722429191025,3.00766,3324.9,3323.8,2.54696444]
[1722429191246,3.00752,3325.0,3323.8,2.74696444]
[1722429191431,3.00745,3325.1,3323.9,2.65566616]
[1722429191746,3.00745,3325.1,3324.1,2.3903]
[1722429191957,3.00745,3325.1,3324.2,0.06015829]
[1722429192258,3.00726,3325.3,3324.2,0.06015829]
[1722429193172,3.00758,3325.0,3324.1,2.3903]
[1722429193357,3.00761,3324.9,3324.2,0.49523781]
[1722429193872,3.00776,3324.8,3324.2,0.49523781]
[1722429194077,3.00789,3324.6,3324.1,2.3903]
[1722429194642,3.00753,3325.0,3324.1,2.3903]
[1722429194850,3.00762,3324.9,3324.1,2.3903]
[1722429195046,3.0,3325.4,3324.1,2.3903]
[1722429195047,3.00781,3324.7,3324.2,0.23903]
[1722429195233,3.00781,3324.7,3324.1,2.3903]
[1722429195465,3.00768,3324.9,3324.1,2.3903]
[1722429196166,3.00754,3325.0,3324.1,2.3903]
[1722429196661,3.00766,3324.9,3324.2,35.0]
[1722429196831,3.00766,3324.9,3324.2,38.04901288]
[1722429197577,3.0077,3324.8,3324.2,38.04901288]
[1722429197726,3.00747,3325.1,3324.2,38.04901288]
[1722429197932,0.55,3325.0,3324.2,38.04901288]
[1722429198186,10.41729,3325.3,3324.2,38.04901288]
[1722429198187,7.41,3325.3,3324.4,2.2542]
[1722429198346,0.55,3325.2,3324.5,0.23143612]
[1722429198949,7.41,3325.3,3324.5,0.23143612]
[1722429199534,7.41,3325.3,3324.8,0.2]
[1722429199736,7.41,3325.3,3324.9,2.2542]
[1722429199938,7.41,3325.3,3324.9,2.49962]
[1722429200789,2.59847271,3326.8,3324.9,8.8088]
[1722429200994,3.00568,3327.1,3325.6,3.30851]
[1722429201319,2.82865504,3327.6,3325.7,38.7461779]
[1722429201320,3.00598,3326.7,3325.7,38.7461779]
[1722429201532,3.00598,3326.7,3325.7,38.686051]
[1722429201728,3.00581,3326.9,3325.8,0.06012689]
[1722429202017,3.00564,3327.1,3325.8,0.06012689]
[1722429202418,3.00572,3327.0,3325.9,35.0]
[1722429202710,5.36223,3327.6,3325.9,35.0]
[1722429202711,3.00587,3326.9,3325.9,35.37461779]
[1722429203199,3.00589,3326.8,3325.9,35.37461779]
[1722429203412,3.00539,3327.4,3326.0,2.09951191]
[1722429203413,3.00584,3326.9,3326.0,2.09951191]
[1722429204892,3.00563,3327.1,3326.0,2.09951191]
[1722429204893,3.00573,3327.0,3326.0,2.09951191]
[1722429205529,3.00592,3326.8,3326.0,2.09951191]
[1722429205730,3.00573,3327.0,3326.0,2.09951191]
[1722429205731,3.00573,3327.0,3326.1,0.931471]
[1722429206032,3.00573,3327.0,3326.2,2.3419]
[1722429206329,3.536223,3327.5,3326.2,2.3419]
[1722429206330,3.00562,3327.1,3326.2,2.3419]
[1722429206535,3.0055,3327.3,3326.3,0.06012279]
[1722429206735,7.41,3327.4,3326.4,0.24020228]
[1722429206937,0.55,3327.3,3326.4,0.24020228]
[1722429207248,3.00596,3326.8,3324.6,0.3016]
[1722429207387,3.552,3326.6,3324.9,0.06013927]
[1722429207588,3.00608,3326.6,3325.0,3.00745]
[1722429207830,3.0059,3326.8,3325.3,3.00719]